bitfinex/quotes_ETHUSD_20250724
["timestamp","ask_amount","ask_price","bid_price","bid_amount"]
[1753338631309,0.002,3580.7,3580.6,10.5701935]
[1753338631511,0.002,3580.7,3580.6,10.54226522]
[1753338632712,2.79096695,3583.0,3581.1,2.79243807]
[1753338633036,1.53412168,3583.8,3582.8,13.0512503]
[1753338633237,1.53412168,3583.8,3582.8,10.91511309]
[1753338633435,0.1392,3583.3,3582.8,17.9731503]
[1753338633661,1e-08,3582.9,3582.8,17.8339503]
[1753338634811,1e-08,3582.9,3582.8,7.02381309]
[1753338635025,1e-08,3582.9,3582.8,11.38981309]
[1753338635423,1e-08,3582.9,3582.8,4.02381309]
[1753338635677,1e-08,3582.9,3582.8,8.39081309]
[1753338636204,1e-08,3582.9,3582.8,17.8639503]
[1753338636353,1e-08,3582.9,3582.8,18.0031503]
[1753338637074,1e-08,3582.9,3582.8,4.3719]
[1753338637254,0.13920001,3582.9,3582.8,8.5987]
[1753338637567,0.13920001,3582.9,3582.8,4.2327]
[1753338637742,0.13920001,3582.9,3582.8,11.41421309]
[1753338637944,0.13920001,3582.9,3582.5,0.4711]
[1753338638138,1e-08,3582.9,3582.6,4.368]
[1753338638344,1e-08,3582.9,3582.7,4.368]
[1753338638732,0.1392,3582.8,3582.7,4.368]
[1753338639547,0.1392,3582.8,3582.7,4.8391]
[1753338639976,0.1392,3582.8,3582.7,7.630291]
[1753338642870,0.1392,3582.8,3582.6,6.47313721]
[1753338643071,0.1392,3582.8,3582.7,4.362]
[1753338643271,1e-08,3582.9,3582.7,4.362]
[1753338643472,0.1392,3582.8,3582.7,4.362]
[1753338647656,3.40423893,3582.8,3582.1,3.55103368]
[1753338647868,3.40423893,3582.8,3581.9,2.79181318]
[1753338647869,0.1392,3582.6,3582.2,4.356]
[1753338648072,1.271,3582.8,3582.3,4.356]
[1753338648073,2.79135276,3582.5,3582.3,4.356]
[1753338648266,3.26525276,3582.5,3582.3,4.356]
[1753338648485,0.6131,3582.4,3581.8,0.8241]
[1753338648681,0.1392,3582.0,3581.9,4.355]
[1753338648848,2.79173646,3582.0,3581.9,4.355]
[1753338649047,4.19223646,3582.0,3581.9,4.355]
[1753338649248,1.4005,3582.0,3581.9,4.355]
[1753338649648,0.9266,3582.0,3581.9,4.355]
[1753338650179,3.71833646,3582.0,3581.9,4.355]
[1753338650383,4.19223646,3582.0,3581.9,4.355]
[1753338650742,4.74223646,3582.0,3581.9,4.355]
[1753338652597,4.11338213,3581.3,3581.2,6.708]
[1753338652781,0.69,3581.3,3581.2,4.355]
[1753338652981,0.14,3581.3,3581.2,4.355]
[1753338653181,0.14,3581.3,3581.2,7.6184601]
[1753338653357,0.14,3581.3,3581.2,8.3924601]
[1753338654598,3.0,3582.4,3581.8,2.79181537]
[1753338654771,1.29080001,3582.9,3581.9,5.132]
[1753338655093,1.29080001,3582.9,3582.4,2.79139654]
[1753338655298,1.29080001,3582.9,3581.9,11.60513721]
[1753338655299,0.1392,3582.0,3581.9,2.7918144]
[1753338655499,0.1392,3582.1,3582.0,2.79168631]
[1753338655996,0.1392,3582.1,3581.9,4.357]
[1753338656296,0.1392,3582.1,3582.0,4.05433646]
[1753338658364,0.1392,3582.1,3582.0,1.2626]
[1753338658580,0.1392,3582.1,3581.9,7.14878789]
[1753338658982,0.1392,3582.1,3581.7,2.79196904]
[1753338659312,0.4739,3582.1,3581.8,4.357]
[1753338659524,0.1392,3581.9,3581.8,7.14889234]
[1753338660029,0.1392,3581.9,3581.8,4.357]
[1753338660393,0.1392,3581.9,3581.6,0.001]
[1753338660583,1.0239,3581.8,3581.6,0.001]
[1753338660916,3.48117029,3581.7,3581.6,0.001]
[1753338661095,0.6892,3581.7,3581.6,4.358]
[1753338661297,1.1631,3581.7,3581.6,4.358]
[1753338661498,3.95507029,3581.7,3581.6,4.358]
[1753338661701,1.1631,3581.7,3581.6,4.358]
[1753338662518,3.95507029,3581.7,3581.6,4.358]
[1753338662718,4.71987029,3581.7,3581.6,0.001]
[1753338662928,7.71987029,3581.7,3581.6,0.001]
[1753338667402,7.71987029,3581.7,3580.4,0.001]
[1753338667607,3.48290601,3580.5,3580.4,4.352]
[1753338667804,3.92450601,3580.5,3580.4,4.352]
[1753338668401,3.92450601,3580.5,3580.4,0.001]
[1753338669015,7.67318818,3580.5,3580.4,0.001]
[1753338669217,7.16524004,3580.2,3580.1,0.04]
[1753338669422,7.30524004,3580.2,3580.1,0.04]
[1753338669595,7.74684004,3580.2,3580.1,0.04]
[1753338669793,7.74684004,3580.2,3579.9,1e-08]
[1753338669794,6.34329608,3580.0,3579.9,1e-08]
[1753338669994,7.84158016,3580.0,3579.9,1e-08]
[1753338670194,8.28318016,3580.0,3579.9,1e-08]
[1753338670500,12.63418016,3580.0,3579.9,1e-08]
[1753338671426,3.34392042,3579.2,3578.5,0.001]
[1753338671605,7.12592042,3579.2,3578.5,0.001]
[1753338671809,8.01460259,3579.2,3579.1,1e-08]
[1753338672005,8.45620259,3579.2,3579.1,1e-08]
[1753338672192,9.84624392,3579.2,3579.1,1e-08]
[1753338674042,9.15624392,3579.2,3579.1,1e-08]
[1753338674197,9.70624392,3579.2,3579.1,1e-08]
[1753338675312,2.9207235,3579.2,3579.1,1e-08]
[1753338675513,1.39004133,3579.2,3579.1,2.7939985]
[1753338675800,1.39004133,3579.2,3579.1,3.2445985]
[1753338676831,1.39004133,3579.2,3579.1,1e-08]
[1753338677699,1.94004133,3579.2,3579.1,1e-08]
[1753338678708,1.39004133,3579.2,3579.1,4.03073848]
[1753338678929,1.39004133,3579.2,3579.1,5.12058764]
[1753338679737,1.39004133,3579.2,3579.1,5.14852762]
[1753338680114,1.39004133,3579.2,3579.1,5.12058764]
[1753338680836,1.39004133,3579.2,3579.1,9.48058764]
[1753338681201,1.39004133,3579.2,3579.1,5.12058764]
[1753338681408,1.39004133,3579.2,3579.1,9.47958764]
[1753338681803,1.39004133,3579.2,3579.1,5.12058764]
[1753338682342,3.60907698,3581.0,3580.3,2.79304703]
[1753338682639,0.8165,3581.3,3580.4,4.357]
[1753338682802,3.0,3580.8,3580.5,4.358]
[1753338683006,3.04,3580.9,3580.5,4.358]
[1753338683231,2.79288869,3580.6,3579.9,2.79336438]
[1753338683443,0.4416,3580.8,3580.0,4.358]
[1753338683444,0.55,3580.7,3580.0,4.358]
[1753338683606,3.72518429,3580.7,3580.0,7.15127001]
[1753338683807,0.55,3580.5,3580.0,4.358]
[1753338684150,0.55,3580.5,3579.9,2.79335909]
[1753338684151,0.14,3580.1,3579.6,2.79355623]
[1753338684446,0.14,3580.1,3579.7,7.15252392]
[1753338684646,0.55,3580.3,3579.6,0.4506]
[1753338684829,0.14,3579.7,3579.6,2.79360822]
[1753338685027,0.14,3579.7,3579.6,3.885579]
[1753338685641,0.14,3579.7,3579.6,4.99837078]
[1753338686440,0.14,3579.7,3579.6,7.791979]
[1753338686948,0.14,3579.7,3579.6,8.242579]
[1753338687615,0.14,3579.7,3579.6,4.99837078]
[1753338687815,0.14,3579.7,3579.6,4.354]
[1753338688443,0.14,3579.7,3579.6,7.59820822]
[1753338689641,0.14,3579.7,3579.6,4.8046]
[1753338690272,0.14,3579.7,3579.6,7.59820822]
[1753338690426,0.14,3579.7,3579.6,4.35]
[1753338690755,0.69,3579.7,3579.6,4.35]
[1753338691841,0.69,3579.7,3579.4,0.8264]
[1753338692046,0.55,3579.7,3579.6,4.35]
[1753338692662,0.55,3579.7,3579.1,3.57758239]
[1753338692663,0.69,3579.7,3579.1,3.57758239]
[1753338692858,0.55,3579.7,3579.4,2.79371096]
[1753338693060,0.7633,3579.9,3579.5,7.14163805]
[1753338693356,0.55,3580.2,3579.6,2.79360822]
[1753338693546,0.55,3580.2,3579.7,2.79352516]
[1753338693860,0.55,3580.2,3579.8,4.348]
[1753338694066,3.48337411,3579.9,3579.8,4.348]
[1753338694209,3.34345623,3579.8,3579.1,0.78360001]
[1753338694411,0.14,3579.3,3579.1,3.57758533]
[1753338694618,0.14,3579.3,3579.1,1e-08]
[1753338694917,0.55,3579.2,3579.1,1e-08]
[1753338695197,0.55,3579.2,3579.1,4.34800001]
[1753338697716,0.55,3579.2,3579.1,1e-08]
[1753338697912,3.34392042,3579.2,3579.1,4.34500001]
[1753338698116,3.81172042,3579.2,3579.1,4.34500001]
[1753338698359,3.81172042,3579.2,3579.1,1e-08]
[1753338698655,3.81172042,3579.2,3579.1,4.34500001]
[1753338698948,3.81172042,3579.2,3579.1,1e-08]
[1753338699152,4.56444999,3579.2,3579.1,1e-08]
[1753338699311,5.33134999,3579.2,3579.1,1e-08]
[1753338700367,8.33134999,3579.2,3579.1,1e-08]
[1753338701080,12.67834999,3579.2,3579.1,1e-08]
[1753338703040,13.27545611,3579.2,3579.1,1e-08]
[1753338704003,7.17430124,3578.2,3577.6,0.001]
[1753338704185,4.17469181,3577.7,3577.6,0.001]
[1753338704546,4.31469181,3577.7,3577.6,0.001]
[1753338704742,4.78249181,3577.7,3577.6,0.001]
[1753338708756,4.31469181,3577.7,3577.6,0.001]
[1753338708956,0.14,3577.7,3577.6,2.79616994]
[1753338709178,0.14,3577.7,3577.6,2.49334206]
[1753338709906,0.14,3577.7,3577.6,1.2413]
[1753338710056,3.48509181,3577.7,3577.6,0.001]
[1753338710582,3.95289181,3577.7,3577.6,0.001]
[1753338710891,6.95289181,3577.7,3577.6,0.001]
[1753338712785,7.77089181,3577.7,3577.6,1e-08]
[1753338712957,12.86862138,3577.7,3577.6,1e-08]
[1753338713163,6.34516994,3577.6,3577.5,1e-08]
[1753338713388,7.57736994,3577.6,3577.5,1e-08]
[1753338713582,7.11011696,3576.9,3576.4,0.001]
[1753338714089,7.25011696,3576.9,3576.4,0.001]
[1753338714307,7.82235364,3576.9,3576.4,0.001]
[1753338714662,8.29015364,3576.9,3576.4,0.001]
[1753338715603,12.63515364,3576.9,3576.4,0.001]
[1753338716918,8.29015364,3576.9,3576.4,0.001]
[1753338717061,11.59511696,3576.9,3576.4,0.001]
[1753338717262,10.83071696,3576.9,3576.4,0.001]
[1753338717764,0.69,3576.9,3576.4,0.001]
[1753338718118,0.69,3576.9,3576.4,1.2709]
[1753338718119,2.93571696,3576.9,3576.4,1.2709]
[1753338718398,3.48571696,3576.9,3576.4,1.2709]
[1753338719330,0.14,3576.9,3576.8,0.4463]
[1753338720911,0.69,3576.9,3576.8,0.4463]
[1753338721119,0.14,3576.9,3576.8,4.34091995]
[1753338721411,0.14,3576.9,3576.8,4.3688779]
[1753338721609,1.29929187,3577.7,3577.4,2.79530065]
[1753338721924,1.29929187,3577.7,3577.5,1.2322]
[1753338722220,0.14,3577.6,3577.5,4.02744807]
[1753338722374,0.14,3577.6,3577.5,1.2322]
[1753338722576,0.14,3577.6,3577.5,4.32444958]
[1753338722998,0.14,3577.6,3577.5,4.35240206]
[1753338723200,1.43929187,3577.7,3577.6,3.58206994]
[1753338723373,1.43929187,3577.7,3577.6,4.02736994]
[1753338723577,1.43929187,3577.7,3577.6,3.58206994]
[1753338723790,1.43929187,3577.7,3577.6,5.40894221]
[1753338724602,1.29929187,3577.7,3577.6,5.40894221]
[1753338728018,1.29929187,3577.7,3577.6,9.75394221]
[1753338728820,0.55,3578.8,3577.6,9.75394221]
[1753338728821,0.55,3578.8,3578.2,2.79470034]
[1753338728997,0.55,3578.8,3578.3,4.345]
[1753338729316,2.79431078,3578.7,3578.4,1.15356806]
[1753338729495,0.14,3578.5,3578.4,0.71396806]
[1753338730019,0.14,3578.5,3578.4,1.46466806]
[1753338730195,0.14,3578.5,3578.4,5.5343]
[1753338730404,0.14,3578.5,3578.4,8.32884504]
[1753338732825,0.14,3578.5,3578.4,5.5343]
[1753338733335,0.14,3578.5,3578.4,8.32884504]
[1753338733839,0.14,3578.5,3578.4,3.98484504]
[1753338734170,0.042,3578.9,3578.8,3.6148327]
[1753338734323,0.042,3578.9,3578.8,7.98677502]
[1753338734626,0.042,3578.9,3578.8,8.3984327]
[1753338734814,0.042,3578.9,3578.8,1.2602]
[1753338735028,0.042,3578.9,3578.8,5.1646]
[1753338735202,0.042,3578.9,3578.8,0.8206]
[1753338735414,3.38615462,3578.9,3578.8,4.343]
[1753338735625,0.592,3578.9,3578.8,4.343]
[1753338735919,0.592,3578.9,3578.2,1.2634]
[1753338735920,3.38622932,3578.9,3578.2,4.05805095]
[1753338736230,3.38622932,3578.9,3578.3,5.04900499]
[1753338736593,0.14,3578.4,3578.2,1.2634]
[1753338736925,0.14,3578.4,3578.3,4.343]
[1753338737427,0.14,3578.4,3578.3,4.7826]
[1753338738432,0.14,3578.4,3577.9,1.2568]
[1753338738732,0.14,3578.4,3578.0,4.343]
[1753338738937,2.79453633,3578.5,3578.0,4.343]
[1753338738938,2.79453633,3578.5,3578.0,4.7826]
[1753338739090,0.14,3578.1,3578.0,4.7826]
[1753338739496,0.14,3578.1,3578.0,4.343]
[1753338740111,2.79493557,3577.9,3577.8,4.343]
[1753338740311,0.69,3577.9,3577.8,4.343]
[1753338740708,3.48493557,3577.9,3577.8,4.343]
[1753338740997,3.92443557,3577.9,3577.8,4.343]
[1753338741198,2.79517883,3577.6,3577.2,0.4396]
[1753338741399,2.79525199,3577.5,3577.3,4.343]
[1753338741735,0.14,3577.1,3576.8,0.001]
[1753338741938,0.14,3577.1,3576.9,4.7826]
[1753338742230,3.34525246,3577.5,3577.0,0.4396]
[1753338742417,0.14,3577.1,3576.9,10.82090919]
[1753338742625,0.14,3577.1,3577.0,0.4396]
[1753338743136,0.7659,3578.0,3577.0,0.4396]
[1753338743137,0.8164,3578.3,3577.0,1.26795638]
[1753338743344,0.14,3577.3,3577.1,1.28446356]
[1753338743632,2.79527529,3577.5,3577.2,4.343]
[1753338743836,0.14,3577.3,3577.2,4.343]
[1753338744745,0.14,3577.3,3577.2,7.5780825]
[1753338744917,0.14,3577.3,3577.2,9.06372167]
[1753338746911,0.14,3577.3,3577.2,4.343]
[1753338747853,0.14,3577.3,3577.2,4.7826]
[1753338748227,0.14,3577.3,3577.2,4.343]
[1753338749361,0.14,3577.3,3577.2,7.1384825]
[1753338749516,0.14,3577.3,3577.2,7.5780825]
[1753338749852,0.14,3577.3,3577.2,4.7826]
[1753338750051,0.14,3577.3,3577.2,7.5780825]
[1753338750758,0.7732,3578.3,3577.2,10.04344455]
[1753338750927,0.002,3578.4,3577.2,10.04344455]
[1753338750928,0.002,3578.4,3577.9,2.79492101]
[1753338751263,0.002,3578.4,3578.3,6.47790919]
[1753338751414,0.002,3578.4,3578.3,13.61553233]
[1753338751612,0.142,3578.4,3578.3,15.77416705]
[1753338752758,0.142,3578.4,3578.3,8.19694391]
[1753338752916,0.142,3578.4,3578.3,10.82090919]
[1753338753260,0.142,3578.4,3578.3,13.61553233]
[1753338753446,0.142,3578.4,3578.3,14.05513233]
[1753338753622,0.142,3578.4,3578.3,11.26050919]
[1753338753823,0.142,3578.4,3578.3,14.05513233]
[1753338754026,0.142,3578.4,3578.3,15.53865556]
[1753338754460,0.002,3578.4,3578.3,16.31315556]
[1753338754618,0.042,3578.9,3578.3,13.51853242]
[1753338754819,0.042,3578.9,3578.7,2.79431078]
[1753338754820,0.14,3578.8,3578.7,2.79431078]
[1753338755135,0.14,3578.8,3578.7,4.7826]
[1753338755368,0.14,3578.8,3578.7,4.343]
[1753338755820,0.14,3578.8,3578.7,5.49635267]
[1753338756020,0.14,3578.8,3578.7,8.29066345]
[1753338757571,0.042,3578.9,3578.8,2.7942327]
[1753338757740,0.182,3578.9,3578.8,10.12588421]
[1753338757939,0.182,3578.9,3578.8,10.52874189]
[1753338758160,0.042,3578.9,3578.8,12.6461627]
[1753338760431,0.042,3578.9,3578.8,12.6461627]
[1753338760823,0.042,3578.9,3578.8,16.9881627]
[1753338763477,0.042,3578.9,3578.8,13.76313]
[1753338763671,0.182,3578.9,3578.8,13.76313]
[1753338764170,0.6467,3578.9,3578.2,3.0]
[1753338764355,0.042,3578.9,3578.5,2.79440244]
[1753338764555,0.042,3578.9,3578.6,4.341]
[1753338765076,0.14,3578.7,3578.6,4.341]
[1753338767276,0.14,3578.7,3578.6,7.13538886]
[1753338767865,0.14,3578.7,3578.6,4.341]
[1753338768431,0.042,3578.9,3578.6,9.39633685]
[1753338768683,0.182,3578.9,3578.8,2.7942327]
[1753338768847,0.182,3578.9,3578.8,7.1352327]
[1753338769164,0.182,3578.9,3578.8,7.5660327]
[1753338771459,0.182,3578.9,3578.8,3.2250327]
[1753338771661,0.042,3578.9,3578.8,8.99598619]
[1753338775499,0.002,3579.6,3579.2,2.79392042]
[1753338775701,0.002,3579.6,3579.5,9.27159545]
[1753338775980,0.002,3579.6,3579.5,13.61159545]
[1753338776281,0.002,3579.6,3579.5,16.01940446]
[1753338778735,0.04,3580.9,3579.5,16.2257182]
[1753338779059,0.14,3581.6,3581.5,2.7921262]
[1753338779266,0.14,3581.6,3581.5,14.32004801]
[1753338779705,0.1792,3581.9,3581.8,2.79189234]
[1753338779863,0.1792,3581.9,3581.8,4.341]
[1753338780384,4.3243144,3581.9,3581.8,4.341]
[1753338780583,0.55,3581.6,3580.6,2.79281789]
[1753338780881,0.14,3580.8,3580.7,4.90258019]
[1753338781092,0.14,3580.8,3580.7,4.343]
[1753338781447,0.14,3580.8,3580.7,4.7738]
[1753338781843,0.14,3580.8,3580.7,14.07238671]
[1753338782079,0.14,3580.8,3580.7,14.04445921]
[1753338782279,0.7764,3581.6,3580.9,2.7925753]
[1753338782489,0.7764,3581.6,3581.0,4.342]
[1753338782667,0.7764,3581.6,3580.7,9.31568829]
[1753338782668,0.14,3581.0,3580.7,9.31568829]
[1753338782870,0.14,3581.0,3580.8,4.342]
[1753338783189,0.14,3581.0,3580.9,4.342]
[1753338783486,1.3668,3581.0,3580.9,4.342]
[1753338783789,4.68281605,3581.0,3580.9,4.342]
[1753338784085,2.79259404,3580.9,3580.0,2.79323181]
[1753338784391,0.14,3580.3,3580.1,4.342]
[1753338784589,0.14,3580.2,3580.1,4.342]
[1753338785676,0.14,3580.2,3580.1,4.341]
[1753338786689,2.9331552,3580.2,3579.8,3.83109551]
[1753338786914,3.55071469,3580.0,3579.9,4.339]
[1753338787068,3.55071469,3580.0,3579.8,3.83109551]
[1753338787069,3.34337411,3579.9,3579.8,3.83109551]
[1753338787385,3.86687411,3579.9,3579.8,3.83109551]
[1753338787592,3.86687411,3579.9,3579.8,8.17109551]
[1753338787886,3.48337411,3579.9,3579.8,3.83109551]
[1753338788387,5.37390684,3579.9,3579.8,8.17009551]
[1753338788686,5.37390684,3579.9,3579.8,4.339]
[1753338788984,5.37390684,3579.9,3579.1,0.04]
[1753338788985,2.79392042,3579.2,3579.1,0.04]
[1753338789186,0.14,3579.2,3579.1,4.379]
[1753338789688,3.72262042,3579.2,3579.1,4.379]
[1753338789853,0.9287,3579.2,3579.1,4.379]
[1753338790538,3.72262042,3579.2,3579.1,4.379]
[1753338790661,0.9287,3579.2,3579.1,4.379]
[1753338790862,3.72262042,3579.2,3579.1,4.379]
[1753338791058,3.72262042,3579.2,3578.4,0.001]
[1753338791059,2.79446695,3578.5,3578.4,0.001]
[1753338791273,4.13406695,3578.5,3578.4,0.001]
[1753338791464,1.3396,3578.5,3578.4,0.001]
[1753338792356,0.298918,3579.2,3578.4,0.001]
[1753338792357,0.7572,3579.4,3578.4,0.001]
[1753338792560,3.34407034,3579.1,3578.5,4.35]
[1753338793091,3.34385104,3579.3,3578.6,2.79438886]
[1753338793290,0.55,3579.3,3578.6,0.4523]
[1753338793493,0.55,3579.3,3578.7,4.35]
[1753338793863,2.79400382,3579.1,3578.7,4.35]
[1753338794092,2.79394258,3579.2,3578.7,4.35]
[1753338794522,2.79405929,3579.1,3578.7,4.35]
[1753338794705,2.79393488,3579.2,3578.7,4.35]
[1753338795408,0.55,3579.3,3578.8,6.93020919]
[1753338795796,0.55,3579.3,3578.8,9.72442865]
[1753338795975,0.55,3579.3,3578.8,6.93020919]
[1753338796178,3.34385818,3579.3,3578.8,6.93020919]
[1753338796580,3.34385818,3579.3,3578.8,9.72441519]
[1753338796581,0.55,3579.3,3578.8,9.72441519]
[1753338796803,0.55,3579.3,3578.9,0.4523]
[1753338796986,0.55,3579.3,3579.0,4.347]
[1753338797310,2.79392343,3579.2,3579.0,4.347]
[1753338797509,0.55,3579.3,3579.0,4.347]
[1753338798111,3.3438704,3579.3,3579.0,4.347]
[1753338798320,0.55,3579.3,3579.0,4.347]
[1753338798484,2.79399849,3579.1,3579.0,4.347]
[1753338798680,3.34388925,3579.3,3579.0,4.347]
[1753338798879,0.55,3579.3,3579.0,4.347]
[1753338799201,3.34386658,3579.3,3579.0,4.347]
[1753338799373,2.79392509,3579.2,3579.0,4.347]
[1753338800008,2.7939717,3579.2,3579.0,4.347]
[1753338800215,3.34386131,3579.3,3579.0,4.347]
[1753338800375,0.55,3579.3,3579.0,4.347]
[1753338800712,15.24415794,3581.0,3579.0,4.347]
[1753338800928,9.49969296,3582.1,3579.3,6.47790919]
[1753338800929,0.7976,3579.8,3579.3,6.47790919]
[1753338801092,2.79339872,3579.9,3579.3,6.47790919]
[1753338801093,2.79339872,3579.9,3579.4,4.343]
[1753338801292,2.79339872,3579.9,3579.5,0.4523]
[1753338801614,0.7976,3580.1,3579.5,2.79362507]
[1753338801780,0.55,3580.0,3579.6,0.4523]
[1753338801984,0.55,3580.0,3579.7,4.343]
[1753338802418,0.14,3579.8,3579.7,4.343]
[1753338802723,0.14,3579.8,3579.7,8.34772269]
[1753338803051,0.7601,3580.8,3579.7,8.34772269]
[1753338803052,3.55278083,3580.8,3580.2,2.79312894]
[1753338803190,0.7601,3581.3,3580.4,6.47790919]
[1753338803389,0.14,3580.5,3580.4,6.47790919]
[1753338803792,0.14,3580.5,3580.4,10.51809321]
[1753338804293,0.14,3580.5,3580.4,7.72510919]
[1753338804619,0.14,3580.5,3580.4,10.51809321]
[1753338805386,0.14,3580.5,3580.4,11.75090551]
[1753338806928,0.14,3580.5,3580.4,2.4800123]
[1753338807109,0.14,3580.5,3580.4,4.34]
[1753338808344,0.14,3580.5,3580.4,4.7923]
[1753338809340,0.14,3580.5,3580.4,7.58528402]
[1753338810095,0.14,3580.5,3580.4,7.58428402]
[1753338810302,0.04,3580.9,3580.8,2.79267202]
[1753338810520,0.04,3580.9,3580.8,14.16812474]
[1753338810731,0.18,3580.9,3580.8,7.03645272]
[1753338810893,0.18,3580.9,3580.8,11.82775272]
[1753338811287,0.18,3580.9,3580.8,7.48875272]
[1753338811621,0.18,3580.9,3580.8,4.339]
[1753338811839,3.52260762,3580.9,3580.8,4.339]
[1753338812007,1.5213,3580.9,3580.8,4.339]
[1753338812392,1.5213,3580.9,3580.2,2.79312132]
[1753338812615,0.14,3580.4,3580.0,3.24556556]
[1753338812816,0.14,3580.2,3580.1,8.46373935]
[1753338813128,0.14,3580.2,3580.1,8.91603935]
[1753338813715,0.14,3580.2,3580.1,4.339]
[1753338813934,0.14,3580.2,3580.1,7.58451806]
[1753338817426,0.14,3580.2,3580.1,4.339]
[1753338817612,0.14,3580.2,3580.1,7.13221806]
[1753338817807,0.14,3580.2,3580.1,7.56421806]
[1753338820933,0.14,3580.2,3580.1,4.339]
[1753338821155,0.9575,3580.2,3579.7,6.709]
[1753338821437,2.79324198,3580.1,3579.8,4.339]
[1753338821635,0.55,3580.0,3579.8,4.339]
[1753338821839,0.14,3579.9,3579.8,4.339]
[1753338822423,3.48337411,3579.9,3579.8,4.339]
[1753338822626,3.48337411,3579.9,3578.8,2.79415705]
[1753338822627,0.55,3579.4,3578.8,2.79415705]
[1753338822828,3.34377016,3579.4,3578.9,4.339]
[1753338823022,0.14,3579.0,3578.9,4.339]
[1753338823965,0.14,3579.0,3578.5,0.432]
[1753338824136,0.8175,3579.1,3578.6,4.339]
[1753338824463,0.14,3578.5,3578.4,2.79554504]
[1753338824611,0.14,3578.5,3578.4,4.34]
[1753338825146,3.48446695,3578.5,3578.4,0.001]
[1753338825349,3.86796695,3578.5,3578.4,4.34]
[1753338825546,4.66266695,3578.5,3578.4,4.34]
[1753338826134,4.27916695,3578.5,3578.4,4.34]
[1753338827244,1.4847,3578.5,3578.4,4.34]
[1753338827754,4.27916695,3578.5,3578.4,4.34]
[1753338827931,1.4847,3578.5,3578.4,4.34]
[1753338828254,4.27916695,3578.5,3578.4,4.34]
[1753338828648,1.4847,3578.5,3578.4,4.34]
[1753338828851,4.27916695,3578.5,3578.4,4.34]
[1753338829055,1.4847,3578.5,3578.4,4.34]
[1753338829952,0.69,3578.5,3578.4,4.34]
[1753338830859,3.48446695,3578.5,3578.4,4.34]
[1753338831234,0.69,3578.5,3578.4,4.34]
[1753338831643,3.48446695,3578.5,3578.4,4.34]
[1753338831845,4.82057277,3578.5,3578.4,0.001]
[1753338832057,5.20407277,3578.5,3578.4,0.001]
[1753338832930,2.02610582,3578.5,3578.4,0.001]
[1753338833136,4.29836695,3578.5,3578.4,0.001]
[1753338833967,7.68186695,3578.5,3578.4,0.001]
[1753338835869,7.15150124,3578.2,3578.1,0.04]
[1753338836038,7.29150124,3578.2,3578.1,0.04]
[1753338836238,7.67500124,3578.2,3578.1,0.04]
[1753338837166,7.29150124,3578.2,3578.1,0.04]
[1753338837367,7.67500124,3578.2,3578.1,0.04]
[1753338838362,7.29150124,3578.2,3578.1,0.04]
[1753338838873,7.67500124,3578.2,3578.1,0.04]
[1753338839433,7.29150124,3578.2,3578.1,0.04]
[1753338839858,7.67500124,3578.2,3578.1,0.04]
[1753338840481,4.4968,3578.2,3578.1,0.04]
[1753338840642,0.14,3578.2,3578.1,0.04]
[1753338840843,0.14,3578.2,3578.1,0.472]
[1753338841037,0.14,3578.2,3578.1,0.04]
[1753338841744,3.48470124,3578.2,3578.1,0.04]
[1753338842768,0.14,3578.2,3578.1,8.41287935]
[1753338842941,0.14,3578.2,3578.1,7.38677235]
[1753338843142,0.14,3578.2,3578.1,10.1815517]
[1753338843672,0.7576,3579.4,3578.6,2.79433784]
[1753338843977,2.79389176,3579.3,3578.7,4.772]
[1753338844185,2.79365887,3579.6,3578.9,3.59094057]
[1753338844472,2.79353018,3579.7,3579.0,2.7940181]
[1753338844683,0.002,3579.8,3579.2,2.79392042]
[1753338844850,0.002,3579.8,3579.3,4.34]
[1753338845055,0.002,3579.8,3579.3,4.772]
[1753338845258,0.14,3579.4,3579.3,4.34]
[1753338845456,0.14,3579.4,3579.3,5.33279761]
[1753338845857,0.14,3579.4,3579.3,5.76479761]
[1753338846680,0.14,3579.4,3578.9,1.2288]
[1753338846881,0.14,3579.2,3579.0,0.432]
[1753338847110,0.55,3579.3,3579.1,4.34]
[1753338847411,0.14,3579.1,3578.6,2.79436613]
[1753338847581,0.55,3579.3,3578.7,0.68025995]
[1753338847765,3.34415462,3578.9,3578.8,4.339]
[1753338847969,0.14,3578.6,3578.2,0.4353]
[1753338848215,0.55,3578.9,3578.3,4.339]
[1753338848380,2.7942836,3578.8,3578.3,4.339]
[1753338848590,2.93454844,3578.4,3578.1,0.04]
[1753338848907,2.79470124,3578.2,3578.1,0.04]
[1753338849110,2.93470124,3578.2,3578.1,0.04]
[1753338849295,0.14,3578.2,3578.1,0.04]
[1753338849818,3.48470124,3578.2,3578.1,0.04]
[1753338851406,2.93470124,3578.2,3578.1,0.04]
[1753338851598,3.48470124,3578.2,3578.1,0.04]
[1753338851801,4.11262925,3578.2,3578.1,0.04]
[1753338851977,5.25382925,3578.2,3578.1,0.04]
[1753338853076,8.25382925,3578.2,3578.1,0.04]
[1753338855324,8.25382925,3578.2,3577.9,0.001]
[1753338855325,3.34485746,3578.0,3577.9,0.001]
[1753338855626,4.1818957,3578.0,3577.9,0.001]
[1753338855840,4.5653957,3578.0,3577.9,0.001]
[1753338856795,5.3954957,3578.0,3577.9,0.001]